[Event "Najdorf Memorial-A 2022"]
[Site "Warsaw"]
[Date "2022.07.17"]
[Round "9.12"]
[White "Vanduyfhuys, Igor"]
[Black "Stachecki, Mikolaj"]
[Result "0-1"]
[ECO "B62"]
[WhiteElo "1959"]
[BlackElo "1918"]
[Annotator "TA"]
[PlyCount "48"]
[EventDate "2022.07.09"]
[EventType "swiss"]
[EventCountry "POL"]
[SourceTitle "playchess.com"]
[Source "ChessBase"]
[SourceQuality "1"]
[TimeControl "40/5400+30:1800+30"]

{[%evp 15,48,34,23,-120,-121,-455,-458,-441,-439,-454,-450,-512,-502,-550,-556,-583,-566,-656,-619,-607,-604,-620,-617,-621,-611,-616,-589,-652,-650,-645,-638,-800,-784,-1583,-1555]} 1. e4 {[%emt 0:00:01]} c5 {[%emt 0:00:14]} 2. Nf3 {[%emt 0:00:03]} d6 {[%emt 0:00:08]} 3. d4 {[%emt 0:00:04]} cxd4 {[%emt 0:00:05]} 4. Nxd4 {[%emt 0:00:03]} Nf6 {[%emt 0:00:08]} 5. Nc3 {[%emt 0:00:03]} Nc6 {[%emt 0:00:05]} 6. Bg5 {[%emt 0:00:04]} e6 {[%emt 0:00:23]} 7. Qd3 {[%emt 0:00:25]} Be7 {[%emt 0:00:13] 7...Bd7 is the modern continuation.} 8. O-O-O {[%emt 0:00:35]} O-O {[%emt 0:00:16] [#]} 9. Qe3 $146 {[%emt 0:00:29] B62: Sicilian: Richter-Rauzer: 6...e6: Unusual White 7th moves.} (9. Ndb5 $11) ({Predecessor:} 9. Kb1 Bd7 10. Nb3 a5 11. a3 a4 12. Nd4 Qa5 13. Bd2 Qb6 14. Be3 Nxd4 15. Bxd4 Qa5 16. Be2 Rfc8 {1-0 (59) Caruana,F (2806)-Shankland,S (2709) Saint Louis 2021}) 9... Ng4 $17 {[%emt 0:10:18][%csl LRe3,LRg5]} 10. Qg3 $2 {[%emt 0:09:19][%mdl 8192] [#]} Bxg5+ $19 {[%emt 0:03:47] Black is clearly winning.} 11. f4 {[%emt 0:00:02]} Nxd4 {[%emt 0:30:52]} 12. Qxg4 {[%emt 0:02:50]} Bf6 {[%emt 0:00:53][%cal Bg5f6,Bf6e5,Be5d4,Bd4e3][%mdl 32]} 13. e5 {[%emt 0:03:38]} dxe5 {[%emt 0:00:23]} 14. fxe5 {[%emt 0:01:12]} Bxe5 {[%emt 0:00:08]} 15. Nb5 {[%emt 0:00:19]} f5 {[%emt 0:02:47]} 16. Qh5 {[%emt 0:06:56]} Qf6 {[%emt 0:03:45] [#] ...Nxb5 is the strong threat.} 17. Nxd4 {[%emt 0:00:53]} Bxd4 {[%emt 0:00:10]} 18. c3 {[%emt 0:00:02]} Be3+ {[%emt 0:08:15]} 19. Kb1 {[%emt 0:00:05]} e5 {[%emt 0:00:19]} 20. Bc4+ {[%emt 0:01:53]} Kh8 {[%emt 0:00:17]} 21. Rd5 {[%emt 0:00:39]} g6 {[%emt 0:03:15]} 22. Qe2 {[%emt 0:03:29]} f4 {[%emt 0:00:22]} 23. g4 {[%emt 0:00:34]} Be6 {[%emt 0:01:49]} 24. Rd6 {[%emt 0:00:26]} Bxc4 {[%emt 0:01:22] White did not feel at home in the position after the opening.  Weighted Error Value: White=0.99/Black=0.04 (flawless)} 0-1

[Event "Najdorf Memorial-A 2022"]
[Site "Warsaw"]
[Date "2022.07.17"]
[Round "9.13"]
[White "Mazur, Maciej"]
[Black "Kaminski, Jan"]
[Result "1/2-1/2"]
[ECO "B51"]
[WhiteElo "1757"]
[BlackElo "1870"]
[Annotator "NA COMBH"]
[PlyCount "82"]
[EventDate "2022.07.09"]
[EventType "swiss"]
[EventCountry "POL"]
[SourceTitle "playchess.com"]
[Source "ChessBase"]
[SourceQuality "1"]
[TimeControl "40/5400+30:1800+30"]

1. e4 c5 2. Nf3 d6 3. Bb5+ Nd7 4. O-O a6 5. Bxd7+ Bxd7 6. Re1 g6 7. c4 Bg7 8. h3 Nf6 9. Nc3 O-O 10. d3 b5 11. Rb1 b4 12. Nd5 e6 13. Nxf6+ Bxf6 14. b3 Bc6 15. d4 cxd4 16. Nxd4 Bb7 17. Bb2 Qb6 18. Nf3 Bxb2 19. Rxb2 Rfd8 20. Rd2 a5 21. h4 h5 22. Qa1 e5 23. Qd1 Qc5 24. Ng5 Ra6 25. g4 hxg4 26. Qxg4 Bc8 27. Qf3 Qc7 28. Red1 Qe7 29. c5 f6 30. Nh3 Rc6 31. cxd6 Rcxd6 32. Rxd6 Rxd6 33. Rxd6 Qxd6 34. Kg2 Kg7 35. Qe2 Ba6 36. Qe3 Qc7 37. f3 Bc8 38. Nf2 Be6 39. Ng4 Bxg4 40. fxg4 Qc2+ 41. Kg3 Qxa2 1/2-1/2

[Event "Najdorf Memorial-A 2022"]
[Site "Warsaw"]
[Date "2022.07.17"]
[Round "9.14"]
[White "Rozumek, Krzysztof"]
[Black "Basiaga, Sebastian"]
[Result "1-0"]
[ECO "A05"]
[WhiteElo "1801"]
[BlackElo "1770"]
[Annotator "NA COMBH"]
[PlyCount "81"]
[EventDate "2022.07.09"]
[EventType "swiss"]
[EventCountry "POL"]
[SourceTitle "playchess.com"]
[Source "ChessBase"]
[SourceQuality "1"]
[TimeControl "40/5400+30:1800+30"]

1. Nf3 {[%emt 0:00:02]} Nf6 {[%emt 0:00:10]} 2. b3 {[%emt 0:00:02]} d5 {[%emt 0:00:28]} 3. Bb2 {[%emt 0:00:03]} c5 {[%emt 0:00:39]} 4. e3 {[%emt 0:00:02]} Nc6 {[%emt 0:00:11]} 5. Bb5 {[%emt 0:00:02]} Bd7 {[%emt 0:00:30]} 6. O-O {[%emt 0:00:29]} e6 {[%emt 0:00:25]} 7. Bxc6 {[%emt 0:00:10]} Bxc6 {[%emt 0:00:14]} 8. Ne5 {[%emt 0:00:03]} Qc7 {[%emt 0:00:53]} 9. f4 {[%emt 0:00:33]} Be7 {[%emt 0:01:53]} 10. d3 {[%emt 0:04:10]} O-O {[%emt 0:00:07]} 11. Nd2 {[%emt 0:00:18]} b5 {[%emt 0:00:39]} 12. Qf3 {[%emt 0:07:14]} Bb7 {[%emt 0:05:17]} 13. Qg3 {[%emt 0:04:00]} c4 {[%emt 0:05:30]} 14. Bd4 {[%emt 0:02:54]} Bc5 {[%emt 0:06:37]} 15. Ndf3 {[%emt 0:02:25]} Rac8 {[%emt 0:12:35]} 16. Rf2 {[%emt 0:06:35]} a6 {[%emt 0:07:01]} 17. Raf1 {[%emt 0:02:41]} cxd3 {[%emt 0:09:54]} 18. cxd3 {[%emt 0:00:15]} Qe7 {[%emt 0:00:07]} 19. Qg5 {[%emt 0:03:22]} Rc7 {[%emt 0:04:20]} 20. Qg3 {[%emt 0:06:25]} Rfc8 {[%emt 0:15:44]} 21. h4 {[%emt 0:06:42]} a5 {[%emt 0:07:07]} 22. Qh3 {[%emt 0:07:17]} b4 {[%emt 0:08:37]} 23. Ng5 {[%emt 0:05:58]} Bxd4 {[%emt 0:00:20]} 24. exd4 {[%emt 0:00:03]} Qd6 {[%emt 0:01:20]} 25. f5 {[%emt 0:00:34]} exf5 {[%emt 0:03:13]} 26. Qxf5 {[%emt 0:00:46]} h6 {[%emt 0:02:20]} 27. Nh3 {[%emt 0:03:29]} Rc1 {[%emt 0:00:24]} 28. Nf4 {[%emt 0:01:09]} Rxf1+ {[%emt 0:00:14]} 29. Rxf1 {[%emt 0:00:03]} Rc2 {[%emt 0:00:34]} 30. Nh5 {[%emt 0:02:43]} Bc8 {[%emt 0:00:36]} 31. Nxf6+ {[%emt 0:03:34]} Qxf6 {[%emt 0:00:03]} 32. Qh5 {[%emt 0:00:29]} Qb6 {[%emt 0:02:09]} 33. Rxf7 {[%emt 0:01:08]} Qxd4+ {[%emt 0:00:20]} 34. Kh2 {[%emt 0:00:03]} Be6 {[%emt 0:04:14]} 35. Rxg7+ {[%emt 0:00:46]} Kxg7 {[%emt 0:00:02]} 36. Qg6+ {[%emt 0:00:07]} Kf8 {[%emt 0:00:06]} 37. Qf6+ {[%emt 0:00:31]} Kg8 {[%emt 0:00:31]} 38. Qxe6+ {[%emt 0:00:02]} Kh8 {[%emt 0:00:30]} 39. Qf6+ {[%emt 0:00:08]} Kg8 {[%emt 0:00:06]} 40. Qf7+ {[%emt 0:00:00]} Kh8 {[%emt 0:00:00]} 41. Ng6# 1-0

[Event "Najdorf Memorial-A 2022"]
[Site "Warsaw"]
[Date "2022.07.17"]
[Round "9.15"]
[White "Skrzypczynski, Kacper"]
[Black "Pancewicz, Szymon"]
[Result "1/2-1/2"]
[ECO "D02"]
[WhiteElo "1793"]
[BlackElo "1756"]
[Annotator "NA COMBH"]
[PlyCount "144"]
[EventDate "2022.07.09"]
[EventType "swiss"]
[EventCountry "POL"]
[SourceTitle "playchess.com"]
[Source "ChessBase"]
[SourceQuality "1"]
[TimeControl "40/5400+30:1800+30"]

1. d4 {[%emt 0:00:03]} d5 {[%emt 0:00:10]} 2. Bf4 {[%emt 0:00:10]} Nf6 {[%emt 0:00:52]} 3. Nf3 {[%emt 0:00:06]} c5 {[%emt 0:02:16]} 4. e3 {[%emt 0:00:11]} Nc6 {[%emt 0:01:05]} 5. c3 {[%emt 0:03:52]} Qb6 {[%emt 0:00:54]} 6. Qc1 {[%emt 0:01:17]} Bf5 {[%emt 0:03:02]} 7. Nbd2 {[%emt 0:00:41]} h6 {[%emt 0:03:48]} 8. dxc5 {[%emt 0:03:44]} Qxc5 {[%emt 0:01:43]} 9. Nb3 {[%emt 0:02:37]} Qb6 {[%emt 0:00:35]} 10. Nbd4 {[%emt 0:00:15]} Be4 {[%emt 0:04:39]} 11. h3 {[%emt 0:02:53]} e6 {[%emt 0:05:35]} 12. Be2 {[%emt 0:05:44]} Be7 {[%emt 0:05:24]} 13. Nb5 {[%emt 0:03:22]} Rc8 {[%emt 0:06:45]} 14. O-O {[%emt 0:08:51]} Bxf3 {[%emt 0:03:43]} 15. gxf3 {[%emt 0:00:08]} e5 {[%emt 0:01:21]} 16. Bh2 {[%emt 0:00:17]} a6 {[%emt 0:01:11]} 17. Na3 {[%emt 0:00:09]} O-O {[%emt 0:01:34]} 18. Nc2 {[%emt 0:00:12]} Qc7 {[%emt 0:06:12]} 19. Rd1 {[%emt 0:05:11]} Qd7 {[%emt 0:02:35]} 20. Kg2 {[%emt 0:01:09]} Qf5 {[%emt 0:02:00]} 21. Qd2 {[%emt 0:00:58]} Rfd8 {[%emt 0:01:31]} 22. Bg3 {[%emt 0:03:27]} h5 {[%emt 0:07:24]} 23. h4 {[%emt 0:01:51]} Qg6 {[%emt 0:09:16]} 24. Rac1 {[%emt 0:02:42]} e4 {[%emt 0:05:35]} 25. f4 {[%emt 0:01:55]} Ng4 {[%emt 0:01:59]} 26. Rh1 {[%emt 0:00:59]} Bf6 {[%emt 0:02:36]} 27. Qd1 {[%emt 0:05:14]} Na5 {[%emt 0:04:19]} 28. Nb4 {[%emt 0:12:43]} Qf5 {[%emt 0:03:55]} 29. Nc2 {[%emt 0:00:17]} Nc4 {[%emt 0:01:26]} 30. Bxc4 {[%emt 0:01:09]} Rxc4 {[%emt 0:01:11]} 31. Qe2 {[%emt 0:01:39]} Qe6 {[%emt 0:01:48]} 32. Rcd1 {[%emt 0:02:59]} g6 {[%emt 0:01:32]} 33. Rd2 {[%emt 0:01:00]} Nh6 {[%emt 0:01:16]} 34. Rhd1 {[%emt 0:00:36]} Nf5 {[%emt 0:03:08]} 35. Na3 {[%emt 0:00:22]} Rcc8 {[%emt 0:00:47]} 36. Nc2 {[%emt 0:03:45]} Bxh4 {[%emt 0:01:36]} 37. Nd4 {[%emt 0:00:08]} Nxd4 {[%emt 0:00:57]} 38. Rxd4 {[%emt 0:00:07]} Bf6 {[%emt 0:00:22]} 39. R4d2 {[%emt 0:00:08]} h4 {[%emt 0:01:07]} 40. Bh2 {[%emt 0:00:00]} Kg7 {[%emt 0:00:00]} 41. Bg1 {[%emt 0:00:45]} b5 {[%emt 0:06:36]} 42. a3 {[%emt 0:00:20]} Rd7 {[%emt 0:01:46]} 43. Bh2 {[%emt 0:00:21]} Rh8 {[%emt 0:00:56]} 44. Kh1 {[%emt 0:00:20]} Rh5 {[%emt 0:01:41]} 45. Kg2 {[%emt 0:00:12]} Rd8 {[%emt 0:01:11]} 46. Kh1 {[%emt 0:01:09]} Qc6 {[%emt 0:05:08]} 47. Rg1 {[%emt 0:01:07]} Kf8 {[%emt 0:00:49]} 48. Rgd1 {[%emt 0:00:41]} Qe6 {[%emt 0:02:56]} 49. Kg2 {[%emt 0:00:12]} Kg7 {[%emt 0:00:39]} 50. Kh1 {[%emt 0:00:30]} Rhh8 {[%emt 0:00:48]} 51. Kg2 {[%emt 0:00:14]} Rd7 {[%emt 0:00:08]} 52. Kh1 {[%emt 0:00:30]} Rhd8 {[%emt 0:00:19]} 53. Kg2 {[%emt 0:00:21]} Kf8 {[%emt 0:04:12]} 54. Re1 {[%emt 0:01:20]} Rb7 {[%emt 0:01:10]} 55. Red1 {[%emt 0:00:36]} a5 {[%emt 0:00:46]} 56. Kh1 {[%emt 0:05:07]} Kg7 {[%emt 0:00:06]} 57. Kg2 {[%emt 0:00:23]} Qc6 {[%emt 0:02:22]} 58. Qg4 {[%emt 0:00:58]} Qd7 {[%emt 0:01:50]} 59. Qxd7 {[%emt 0:00:55]} Rbxd7 {[%emt 0:00:16]} 60. f3 {[%emt 0:00:21]} exf3+ {[%emt 0:01:31]} 61. Kxf3 {[%emt 0:00:07]} Be7 {[%emt 0:02:08]} 62. Rd3 {[%emt 0:01:39]} f5 {[%emt 0:00:27]} 63. Kg2 {[%emt 0:00:13]} Kf7 {[%emt 0:00:38]} 64. Bg1 {[%emt 0:00:19]} Ke6 {[%emt 0:00:52]} 65. Kh3 {[%emt 0:00:08]} Rb7 {[%emt 0:01:06]} 66. Bf2 {[%emt 0:01:17]} b4 {[%emt 0:00:37]} 67. cxb4 {[%emt 0:01:21]} axb4 {[%emt 0:00:10]} 68. Be1 {[%emt 0:01:21]} bxa3 {[%emt 0:01:08]} 69. bxa3 {[%emt 0:00:12]} Ra8 {[%emt 0:01:50]} 70. Rxd5 {[%emt 0:01:21]} Rxa3 {[%emt 0:00:23]} 71. Re5+ {[%emt 0:00:17]} Kf7 {[%emt 0:00:16]} 72. Bxh4 {[%emt 0:01:27]} Bxh4 {[%emt 0:00:43]} 1/2-1/2

[Event "Najdorf Memorial-A 2022"]
[Site "Warsaw"]
[Date "2022.07.17"]
[Round "9.16"]
[White "Sacharewicz, Krzysztof"]
[Black "Pires, Emanuel Joao Robarts"]
[Result "0-1"]
[ECO "D02"]
[WhiteElo "1832"]
[BlackElo "2062"]
[Annotator "TA"]
[PlyCount "86"]
[EventDate "2022.07.09"]
[EventType "swiss"]
[EventCountry "POL"]
[SourceTitle "playchess.com"]
[Source "ChessBase"]
[SourceQuality "1"]
[TimeControl "40/5400+30:1800+30"]

{[%evp 11,86,31,50,0,0,0,2,8,8,0,17,-5,41,33,45,-35,-27,-142,-138,-150,-135,-143,-149,-189,-191,-182,-189,-189,-184,-194,-190,-205,-194,-195,-196,-204,-204,-232,-214,-288,-259,-299,-288,-325,-284,-285,-283,-294,-299,-314,-313,-374,-346,-435,-432,-492,-464,-684,-679,-1325,-1236,-1147,-1130,-1120,-1064,-1057,-1044,-1039,-1016,-29970,-29971,-29970,-29972,-29972,-29961,-5916,-5612]} 1. d4 {[%emt 0:00:01]} d5 {[%emt 0:16:31]} 2. Nf3 {[%emt 0:00:11]} Nc6 {[%emt 0:00:06]} 3. g3 {[%emt 0:00:15]} Bf5 {[%emt 0:00:56]} 4. Bg2 {[%emt 0:00:02]} e6 {[%emt 0:00:08]} 5. O-O {[%emt 0:00:15]} Be7 {[%emt 0:00:10]} 6. c4 {[%emt 0:03:05]} Nf6 {[%emt 0:00:17]} 7. Qb3 {[%emt 0:00:01] D02: 1 d4 d5 2 Nf3 sidelines, including 2...Nf6 3 g3 and 2...Nf6 3 Bf4.} (7. Ne5 $14) 7... O-O $11 {[%emt 0:03:40]} 8. Bd2 {[%emt 0:07:21] [#] Against Na5} dxc4 $146 {[%emt 0:02:46]} ({Predecessor:} 8... Ne4 9. cxd5 exd5 10. Bf4 Na5 11. Qd1 b6 12. Nbd2 c5 13. Rc1 Qd7 14. Ne5 Qb5 {1-0 (37) Tesar,J (1966)-Marsina,S (1799) Hradec Kralove 2021}) 9. Qxc4 {[%emt 0:01:47] The position is equal.} Ne4 {[%emt 0:00:02]} 10. Be3 {[%emt 0:03:06]} Nb4 {[%emt 0:03:42]} 11. Nbd2 {[%emt 0:05:46]} b5 {[%emt 0:06:14]} (11... a5 $11) 12. Qb3 {[%emt 0:07:09][%cal Of3h4]} a5 {[%emt 0:04:08][%cal Ba7a5,Ba5a4][%mdl 32]} 13. Nxe4 {[%emt 0:04:33]} (13. a3 $14 a4 14. Qd1 Nxd2 15. Bxd2) 13... Bxe4 $15 {[%emt 0:04:33]} 14. Ne5 {[%emt 0:04:04] [#] White is now going downhill.} (14. a4 $11 {remains equal.}) 14... a4 $1 $17 {[%emt 0:07:28]} 15. Qc3 {[%emt 0:08:27] [#]} Nxa2 $1 {[%emt 0:13:28][%mdl 512]} 16. Rxa2 {[%emt 0:02:55]} Bxg2 {[%emt 0:00:03]} 17. Nc6 {[%emt 0:00:11] Inhibits b4.} Bxc6 {[%emt 0:00:18]} 18. Qxc6 {[%emt 0:00:02]} Qd5 {[%emt 0:04:35]} 19. Qxd5 {[%emt 0:00:26]} exd5 {[%emt 0:00:01]} 20. Bf4 {[%emt 0:00:07]} Rfc8 {[%emt 0:02:12]} 21. Rd1 {[%emt 0:01:31]} g5 {[%emt 0:03:26]} 22. Be3 {[%emt 0:00:46]} f6 {[%emt 0:01:39]} 23. Raa1 {[%emt 0:01:55]} Kf7 {[%emt 0:00:37]} 24. Rdc1 {[%emt 0:03:01]} Ke6 {[%emt 0:01:27]} 25. f4 {[%emt 0:01:10]} g4 {[%emt 0:02:02]} 26. h3 {[%emt 0:00:02]} gxh3 {[%emt 0:03:54]} 27. Kh2 {[%emt 0:00:01]} Ra6 {[%emt 0:01:40]} 28. Kxh3 {[%emt 0:00:36]} Kf5 {[%emt 0:04:05]} 29. Kg2 {[%emt 0:03:57]} Ke4 {[%emt 0:00:21]} 30. Bf2 {[%emt 0:01:19]} b4 {[%emt 0:00:58] Prevents Rc3.} 31. Rh1 {[%emt 0:02:33]} a3 {[%emt 0:07:26]} 32. Rxh7 {[%emt 0:01:47]} Bd6 {[%emt 0:01:05]} 33. bxa3 {[%emt 0:03:52]} bxa3 {[%emt 0:00:02]} 34. Ra2 {[%emt 0:00:10]} (34. Rh6 $142 Bf8 35. Rhh1) 34... Rb8 $19 {[%emt 0:00:59]} 35. e3 {[%emt 0:01:45]} Rb2 {[%emt 0:01:13]} 36. Ra1 {[%emt 0:00:01]} a2 {[%emt 0:01:48] White must now prevent ...Rb1.} 37. Rhh1 {[%emt 0:00:20] Prevents Rb1.} Rc6 {[%emt 0:00:18] And now ...Rcc2 would win.} 38. g4 Rcc2 {[%emt 0:00:09]} 39. Rhf1 {[%emt 0:01:10]} c5 {[%emt 0:01:16] Hoping for ...cxd4.} 40. dxc5 {[%emt 0:00:00]} Bxc5 {[%emt 0:00:00]} 41. Rae1 {[%emt 0:05:06]} Rb1 {[%emt 0:03:14]} 42. Rxb1 {[%emt 0:01:00]} axb1=Q {[%emt 0:01:06]} 43. Rxb1 {[%emt 0:00:02]} Bxe3 {[%emt 0:00:19] Weighted Error Value: White=0.66/Black=0.04 (flawless)} 0-1

[Event "Najdorf Memorial-A 2022"]
[Site "Warsaw"]
[Date "2022.07.17"]
[Round "9.17"]
[White "Choroszej, Aleksander"]
[Black "Hemmerling, Jaroslaw"]
[Result "1/2-1/2"]
[ECO "D37"]
[WhiteElo "2040"]
[BlackElo "1854"]
[Annotator "TA"]
[PlyCount "164"]
[EventDate "2022.07.09"]
[EventType "swiss"]
[EventCountry "POL"]
[SourceTitle "playchess.com"]
[Source "ChessBase"]
[SourceQuality "1"]
[TimeControl "40/5400+30:1800+30"]

{[%evp 16,164,41,0,83,7,3,2,-8,-7,1,-61,-54,-70,-53,-70,-68,-87,-84,-82,-59,-101,-71,-91,-91,-99,-69,-106,-106,-125,-115,-123,-116,-122,-125,-120,-112,-130,-114,-141,-141,-134,-118,-164,-140,-216,-206,-194,-150,-337,-341,-323,-175,-162,-132,-289,-271,-387,-343,-559,-541,-497,-310,-414,-399,-535,-489,-436,0,-463,-288,-281,-172,-415,-415,-422,-416,-424,-424,-424,-424,-488,-425,-536,-293,-355,0,-549,-454,-556,0,-454,-454,-455,-455,-445,-561,-536,-283,-225,0,-475,-315,-904,-572,-818,-725,-838,-806,-997,-1009,-993,-1001,-985,0,-1014,-991,-906,-887,-1014,-1018,-902,-988,-987,-964,-726,-319,-1026,-997,-916,-902,-818,-560,-421,-28,-35,0,0,0,0,0,0,0,0,0,0,0,0,0,0,0]} 1. d4 {[%emt 0:00:07]} d5 {[%emt 0:00:02]} 2. c4 {[%emt 0:00:08]} e6 {[%emt 0:00:04]} 3. Nc3 {[%emt 0:00:06]} Nf6 {[%emt 0:00:07]} 4. Nf3 {[%emt 0:00:05]} dxc4 {[%emt 0:00:07]} 5. e4 {[%emt 0:03:48][%cal Be2e4,Be4e5,Be5f6][%mdl 32]} Bb4 {[%emt 0:00:16]} 6. Bg5 {[%emt 0:20:42]} c5 {[%emt 0:14:13]} 7. e5 {[%emt 0:16:50]} cxd4 {[%emt 0:02:17]} 8. Qa4+ {[%emt 0:26:01]} Nc6 {[%emt 0:11:10]} 9. O-O-O {[%emt 0:00:10]} Qa5 {[%emt 0:22:38] [#] D39: Queen's Gambit Declined: Ragozin Defence with 5 Bg5 dxc4.} 10. Qxa5 $146 {[%emt 0:22:07] White is more active.} (10. exf6 $16 Bxc3 11. Qxc4 (11. fxg7 Rg8 $14)) ({Predecessor:} 10. exf6 Bxc3 11. fxg7 Rg8 12. Qxc4 Rxg7 13. bxc3 Rxg5 14. Nxg5 Qxg5+ 15. Kb2 Bd7 16. cxd4 Rc8 17. Be2 {1-0 (26) Kuzubov,Y (2655)-Bogdanovich,S (2537) Kiev 2018}) 10... Bxa5 $11 {[%emt 0:00:41]} 11. exf6 {[%emt 0:01:52]} dxc3 {[%emt 0:02:13]} 12. fxg7 {[%emt 0:00:52][%cal Rg7h8] [#]} Rg8 {[%emt 0:11:44]} 13. Bxc4 {[%emt 0:01:58]} (13. Bf6 $11 c2 14. Rd6 (14. Kxc2 Nb4+ 15. Kb1 Nd5 $11)) 13... cxb2+ $15 {[%emt 0:02:12]} 14. Kxb2 {[%emt 0:00:08]} Rxg7 {[%emt 0:00:38]} 15. g3 {[%emt 0:01:05]} Bd7 {[%emt 0:06:22]} 16. h4 {[%emt 0:00:35]} Bd8 {[%emt 0:01:54]} 17. Rhe1 {[%emt 0:00:51]} Rc8 {[%emt 0:05:44]} 18. Bb5 {[%emt 0:01:22]} a6 {[%emt 0:01:12]} 19. Bxd8 {[%emt 0:00:20]} Rxd8 {[%emt 0:00:37]} 20. Ba4 {[%emt 0:00:24]} Rg4 {[%emt 0:00:52]} 21. Bc2 {[%emt 0:00:23]} Rb4+ {[%emt 0:01:15]} 22. Kc3 {[%emt 0:00:44]} h6 {[%emt 0:00:51]} 23. Ne5 {[%emt 0:00:44] Nxc6 is the strong threat.} Rb5 {[%emt 0:01:05]} 24. Nxd7 {[%emt 0:00:16]} Rxd7 {[%emt 0:00:26]} 25. Rxd7 {[%emt 0:00:21]} Kxd7 $17 {[%emt 0:00:03][%mdl 4096] Endgame KRB-KRN} 26. Be4 {[%emt 0:00:15]} Kc7 {[%emt 0:03:19]} 27. Bxc6 {[%emt 0:00:15]} Kxc6 {[%emt 0:00:22] KR-KR} 28. Re4 {[%emt 0:00:27]} Rc5+ {[%emt 0:00:35]} 29. Kb3 {[%emt 0:00:25]} (29. Kd3 $17) 29... b5 {[%emt 0:02:22]} 30. Rg4 {[%emt 0:00:29]} (30. a4 $17 {keeps fighting.}) 30... Rf5 $19 {[%emt 0:04:14]} 31. f4 {[%emt 0:00:10]} Kd5 {[%emt 0:01:33]} 32. Rg8 $2 {[%emt 0:01:13] [#]} (32. Kb4 $17 {was called for.}) 32... a5 $1 {[%emt 0:00:07]} 33. Rc8 {[%emt 0:00:29]} e5 {[%emt 0:00:20]} (33... h5 $142 {aiming for ...Kd4.} 34. Kc2 Ke4) 34. fxe5 {[%emt 0:01:14]} Kxe5 {[%emt 0:02:15] Threatens to win with ...h5.} 35. Rh8 $2 {[%emt 0:00:32]} (35. Ra8 $17 {might work better.}) 35... h5 {[%emt 0:00:51]} 36. Kc2 {[%emt 0:00:06]} (36. Ra8 $142 Ke4 37. Rxa5) 36... Ke4 {[%emt 0:00:13]} 37. Rd8 $2 {[%emt 0:00:44]} (37. Rg8) 37... Rf2+ {[%emt 0:00:54]} 38. Kb1 {[%emt 0:00:19]} Rf3 {[%emt 0:00:55]} 39. Rh8 {[%emt 0:00:47]} Rf5 {[%emt 0:00:17]} 40. Rd8 {[%emt 0:00:00]} Kf3 {[%emt 0:00:00]} 41. Rg8 {[%emt 0:01:30]} Ke4 {[%emt 0:05:17]} 42. Rd8 $1 {[%emt 0:00:38]} Rd5 {[%emt 0:13:07]} 43. Rg8 {[%emt 0:00:21]} Kd4 {[%emt 0:02:59]} 44. Rf8 $2 {[%emt 0:05:22]} (44. Kb2 {was necessary.}) 44... Kc3 {[%emt 0:01:01][%cal Rd5d1]} 45. Rc8+ {[%emt 0:01:37]} Kb4 {[%emt 0:00:03]} 46. Re8 {[%emt 0:01:57]} Rf5 {[%emt 0:04:26]} 47. Re3 {[%emt 0:00:35]} Kc4 {[%emt 0:00:06]} 48. Re8 {[%emt 0:01:12]} b4 {[%emt 0:01:33]} 49. Rd8 {[%emt 0:01:29]} Kb5 {[%emt 0:00:53]} 50. Re8 {[%emt 0:00:35]} Kc4 {[%emt 0:01:55]} (50... a4 $142 51. a3 b3 52. Rb8+ Kc4) 51. Rd8 $1 {[%emt 0:00:09]} Rf3 {[%emt 0:00:19]} 52. Rh8 {[%emt 0:01:17]} Rf5 {[%emt 0:00:56]} ({Better is} 52... f5 $19 53. Rc8+ Kd4) 53. Re8 $2 {[%emt 0:00:38][%mdl 8192]} (53. Rd8 $1 $11) 53... Kc3 {[%emt 0:03:46]} 54. Rc8+ {[%emt 0:02:19]} Kd3 {[%emt 0:00:02]} 55. Re8 {[%emt 0:00:23]} a4 {[%emt 0:00:25]} 56. Rd8+ {[%emt 0:01:12]} Kc3 {[%emt 0:02:29]} 57. Rc8+ {[%emt 0:00:06]} Kd3 $2 {[%emt 0:00:02]} (57... Kd4 {Hoping for ...Rf1+.} 58. Rb8 Rf1+ 59. Kc2 Rf2+ 60. Kb1 Kc5 61. Rc8+ Kb5 62. Rb8+ Kc4 63. Rc8+ Kd3) 58. Rd8+ {[%emt 0:00:10]} Ke3 {[%emt 0:01:09]} 59. Rb8 $2 {[%emt 0:01:08]} (59. a3 Rf1+ 60. Kb2 Rf2+ 61. Kb1) 59... Ra5 {[%emt 0:01:44]} 60. Kc2 {[%emt 0:03:28]} Kf3 {[%emt 0:00:25]} 61. Rg8 {[%emt 0:00:07]} Re5 {[%emt 0:00:24]} 62. Kb1 {[%emt 0:00:56]} Re1+ {[%emt 0:00:44]} 63. Kc2 {[%emt 0:00:05]} Re2+ {[%emt 0:00:02]} 64. Kb1 {[%emt 0:00:07]} Re1+ {[%emt 0:00:04]} 65. Kc2 {[%emt 0:00:04]} Re4 {[%emt 0:00:05]} 66. Rg5 {[%emt 0:00:39]} Rg4 {[%emt 0:01:05] ( -> ...Rxg5)} 67. Rxh5 {[%emt 0:01:05]} Kxg3 {[%emt 0:00:02]} 68. Rh7 {[%emt 0:00:39]} f5 {[%emt 0:00:16]} 69. h5 {[%emt 0:00:08]} Kf4 {[%emt 0:01:56]} 70. h6 {[%emt 0:01:55]} Kg5 {[%emt 0:00:36]} (70... Rg2+ $142 71. Kd3 Rxa2) 71. Rf7 $2 {[%emt 0:01:46]} (71. Rh8 Rg2+ 72. Kb1) 71... Kg6 {[%emt 0:00:02]} 72. h7 {[%emt 0:00:07]} Rh4 {[%emt 0:00:04]} 73. Rb7 {[%emt 0:00:03]} Rxh7 {[%emt 0:01:02]} 74. Rxb4 {[%emt 0:00:05]} Ra7 $2 {[%emt 0:00:48]} (74... Rh2+ $19 75. Kb1 Kg5 76. Rxa4 f4) 75. Kd2 {[%emt 0:00:12]} Kg5 {[%emt 0:00:05] Strongly threatening ...f4.} (75... a3 $5 {[%cal Ra7h7]} 76. Rb3 Kh5 $15) 76. Ke2 {[%emt 0:00:16] The position is equal.} Kf6 {[%emt 0:00:48]} 77. Ke3 {[%emt 0:00:27]} a3 {[%emt 0:00:12] White must now prevent ...Rh7.} 78. Kf4 {[%emt 0:00:37]} Ra6 {[%emt 0:00:10]} 79. Rc4 {[%emt 0:00:31]} Ke6 {[%emt 0:00:27]} 80. Rb4 {[%emt 0:00:32]} Kf6 {[%emt 0:00:59]} 81. Rc4 {[%emt 0:00:05]} Kg6 {[%emt 0:00:01]} 82. Rb4 {[%emt 0:00:08]} Kf6 {[%emt 0:00:41] Whites escaped into a draw.  Weighted Error Value: White=0.56/Black=0.61} 1/2-1/2